Cogmind - Beta 16 *** ADVENTURER MODE // 2025.11.23 @ 23:14:17 Player: shisihs Result: Destroyed by G-34 Mercenary with Small Laser Performance ------------- Evolutions (0) 0 Regions Visited (4) 800 Robots Destroyed (13) 65 Value Destroyed (106) 106 Prototype IDs (0) 0 Alien Tech Used (0) 0 Bonus (0) 0 TOTAL SCORE: 971 Bonus ------- None Cogmind --------- Core Integrity 0/250 Matter 271/300 Energy 90/250 System Corruption 0% Temperature Cool (6) Movement Walking (400) Ox4 Location -9/Mines Parts ------- > --- POWER (1) -------- Ion Engine > --- PROPULSION (2) --- Aluminum Leg > --- UTILITY (2) ------ High-capacity Storage Unit > --- WEAPON (2) ------- (None) > --- INVENTORY (20) --- Nuclear Core Small Storage Unit Humpback Humpback High-capacity Battery (250) High-capacity Battery (250) High-capacity Matter Pod (200) Improved Terrain Scanner Improved Terrain Scanner Seismic Detector Rocket Launcher Peak State ------------ > --- POWER ------------ Light Ion Engine > --- PROPULSION ------- Aluminum Leg Aluminum Leg > --- UTILITY ---------- Small Storage Unit Improved Terrain Scanner > --- WEAPON ----------- Assault Rifle Light Assault Rifle > --- INVENTORY -------- Ion Engine Light Treads Light Treads Small Storage Unit Improved Terrain Scanner Seismic Detector ECM Suite Light Cannon [Rating: 10] Favorites ----------- Power Light Ion Engine Engine Light Ion Engine Propulsion Aluminum Leg Leg Aluminum Leg Utility ECM Suite Device ECM Suite Storage High-capacity Storage Unit Weapon Light Assault Rifle Ballistic Gun Light Assault Rifle Ballistic Cannon Light Cannon Build | -11 -10 -10 -10 -9 ------- Run | Yrd Mat Min Exi Min Slots Evolved . | . . . . . Power . | . . . . . Propulsion . | . . . . . Utility . | . . . . . Weapon . | . . . . . Parts Attached 11 | 7 1 . 1 2 Power 2 | 1 . . . 1 Engine 2 | 1 . . . 1 Core . | . . . . . Reactor . | . . . . . Propulsion 2 | 2 . . . . Treads . | . . . . . Leg 2 | 2 . . . . Wheel . | . . . . . Hover . | . . . . . Flight . | . . . . . Utility 4 | 2 1 . 1 . Device 2 | 1 1 . . . Storage 2 | 1 . . 1 . Processor . | . . . . . Hackware . | . . . . . Protection . | . . . . . Artifact . | . . . . . Weapon 3 | 2 . . . 1 Energy Gun . | . . . . . Energy Cannon . | . . . . . Ballistic Gun 2 | 2 . . . . Ballistic Cannon 1 | . . . . 1 Launcher . | . . . . . Special Weapon . | . . . . . Impact Weapon . | . . . . . Slashing Weapon . | . . . . . Piercing Weapon . | . . . . . Special Melee Weapon . | . . . . . Unidentified Prototypes . | . . . . . Parts Lost 4 | . . . . 4 Power 1 | . . . . 1 Propulsion 1 | . . . . 1 Utility 1 | . . . . 1 Weapon 1 | . . . . 1 Highest Loss Streak 4 | . . . . 4 To Critical Strikes . | . . . . . Average Backups 10 | 3 6 8 11 11 Power 1 | . 1 1 1 1 Propulsion . | 1 2 2 . . Utility 7 | . 3 4 8 9 Weapon . | 1 . 1 1 . Tool/Special . | . . . . . Unused Backups 12 | 1 . . 2 9 Power 1 | . . . . 1 Propulsion 2 | . . . 2 . Utility 8 | . . . . 8 Weapon 1 | 1 . . . . Tool/Special . | . . . . . Average Slot Usage (%) 99 | . 100 100 100 93 Engine 13 | . 14 14 14 12 Leg 27 | . 28 28 28 26 Device 13 | . 14 14 14 13 Storage 14 | . 14 14 14 14 Ballistic Gun 27 | . 28 28 28 24 Peak Build Rating 10 | 9 10 8 9 9 Average Rating 8 | 4 8 8 8 8 On Entrance 6 | . 9 8 8 9 Avg Prop Armor Cover (%) . | . . . . . Naked Turns . | . . . . . Heaviest Build 48 | 12 13 13 48 48 Greatest Support 20 | 20 20 20 20 20 Greatest Overweight (x) 4 | . . . 2 4 Average Overweight (x) 1 | . . . 1 2 Largest Inventory Capacity 20 | 8 8 8 20 20 Average Capacity 17 | 6 8 8 19 20 Most Carried 14 | 6 8 8 14 14 Average Carried 12 | 4 6 8 13 13 Final Capacity 20 | 8 8 8 20 20 Final Carried 14 | 6 8 8 14 13 Class Distribution -------------------- 100% | Mutant Dominant Class ---------------- Mutant | -10/Materials Mutant | -10/Mines Mutant | -10/Exiles Mutant | -9/Mines Resources | -11 -10 -10 -10 -9 ----------- Run | Yrd Mat Min Exi Min Matter Collected 381 | 297 24 . 25 35 Remotely . | . . . . . Salvage Created 262 | 142 84 . . 36 Parts 32 | 14 13 . . 5 Haulers Intercepted . | . . . . . Recyclers Shooed . | . . . . . Parts Field Recycled . | . . . . . Retrieved Matter . | . . . . . Parts Self-Destructed . | . . . . . Prevented . | . . . . . Parts Restored . | . . . . . Kills | -11 -10 -10 -10 -9 ------- Run | Yrd Mat Min Exi Min Combat Hostiles Destroyed 8 | . 6 . . 2 Guns 8 | . 6 . . 2 Classes Destroyed 5 | 3 1 . . 1 Worker 1 | 1 . . . . Builder 1 | . . . . 1 Tunneler 2 | 2 . . . . Recycler 1 | 1 . . . . Swarmer 8 | . 6 . . 2 Best Kill Streak 6 | 3 6 . . 3 Combat Bots Only 6 | . 6 . . 2 Max Kills in Single Turn 2 | 1 2 . . 2 Gunslinging 1 | . 1 . . . Exploded . | . . . . . Melee . | . . . . . Uniques/NPCs Destroyed . | . . . . . Combat | -11 -10 -10 -10 -9 -------- Run | Yrd Mat Min Exi Min Hostile Shots Fired 87 | . 28 . . 59 Missed 19 | . 8 . . 11 Hits 68 | . 20 . . 48 Melee 14 | . . . . 14 Projectile 54 | . 20 . . 34 Critical Strikes 4 | . 2 . . 2 Damage Taken 705 | . 121 . . 584 Core 254 | . 18 . . 236 Absorbed by Shields . | . . . . . Ignored by Resistances 210 | . 40 . . 170 Core Remaining (%) 100 | 100 . . . . Volleys Fired 33 | 12 8 . . 13 Largest 2 | 2 2 . . 2 Hottest 50 | 40 40 . . 50 Shots Fired 54 | 17 16 . . 21 Gun 52 | 17 16 . . 19 Cannon 2 | . . . . 2 Launcher . | . . . . . Special . | . . . . . Kinetic 54 | 17 16 . . 21 Thermal . | . . . . . Explosive . | . . . . . Electromagnetic . | . . . . . Robot Hit Streak 7 | 7 5 . . 5 Robot Miss Streak 3 | 1 2 . . 3 Penetration Max . | . . . . . Secondary Targets 1 | . 1 . . . Max Gunslinging Chain 1 | . 1 . . . Shots Hit Robots 35 | 13 10 . . 12 Core Hits 17 | 6 6 1 . 4 Critical Kills . | . . . . . Critical Parts Destroyed . | . . . . . Critical Strikes . | . . . . . Melee Attacks . | . . . . . Impact . | . . . . . Slashing . | . . . . . Piercing . | . . . . . Sneak Attacks . | . . . . . Combat Hostiles . | . . . . . Follow-up Attacks . | . . . . . Damage Inflicted 390 | 131 116 3 . 140 Guns 350 | 131 116 . . 103 Cannons 37 | . . . . 37 Explosions . | . . . . . Melee . | . . . . . Ramming 3 | . . 3 . . Kinetic 387 | 131 116 . . 140 Thermal . | . . . . . Explosive . | . . . . . Electromagnetic . | . . . . . Impact . | . . . . . Slashing . | . . . . . Piercing . | . . . . . Highest Corruption . | . . . . . Average Corruption . | . . . . . Corruption Purged . | . . . . . Corruption Blocked . | . . . . . Overload Shots . | . . . . . Overflow Damage . | . . . . . Projectiles . | . . . . . Explosions . | . . . . . Melee . | . . . . . Knockbacks . | . . . . . Impact . | . . . . . Kinetic . | . . . . . Secondary . | . . . . . Self-Inflicted Damage . | . . . . . Shots . | . . . . . Rammed . | . . . . . Targets Rammed 1 | . . 1 . . Kicked 1 | . . 1 . . Crushed . | . . . . . Highest Temperature 10 | . . . . 10 Average Temperature 7 | . . . . 7 Received Heat Transfer 30 | . . . . 30 Siege Activations . | . . . . . Martial Activations . | . . . . . Shielding Activations . | . . . . . Robots Disrupted . | . . . . . Combat Hostiles . | . . . . . Robots Corrupted . | . . . . . Combat Hostiles . | . . . . . Parts Fried . | . . . . . Impact Corruptions . | . . . . . Robots Melted . | . . . . . Combat Hostiles . | . . . . . Parts Melted . | . . . . . Heat Transferred . | . . . . . Parts Sabotaged . | . . . . . Parts Stolen . | . . . . . Parts Stripped . | . . . . . Power Chain Reactions . | . . . . . Alert | -11 -10 -10 -10 -9 ------- Run | Yrd Mat Min Exi Min Maximum Alert Level . | . . . . . Low Security (%) 100 | 100 100 100 . 100 Level 1 . | . . . . . Level 2 . | . . . . . Level 3 . | . . . . . Level 4 . | . . . . . Level 5 . | . . . . . High Security . | . . . . . Max Security . | . . . . . Peak Influence 130 | 10 130 33 . 35 Initial 33 | . . 33 . . Average 19 | 1 65 29 . 1 Influence Increases 205 | 20 140 . . 45 Destroy 0b10 Robot/C 160 | . 120 . . 40 Destroy 0b10 Robot/NC 25 | 20 . . . 5 Destroy Leader 20 | . 20 . . . Influence Decreases 205 | 20 40 77 23 45 Entered New Map 90 | . . 67 23 . Time Decay 90 | 20 40 10 . 20 Lost Part 25 | . . . . 25 Squads Dispatched . | . . . . . Investigation . | . . . . . Extermination . | . . . . . Reinforcement . | . . . . . Assault . | . . . . . Garrison . | . . . . . Intercept . | . . . . . Searches Triggered . | . . . . . Construction Impeded . | . . . . . Haulers Reinforced . | . . . . . Active Scanning Responses . | . . . . . Cargo Convoy Interrupts . | . . . . . Stealth | -11 -10 -10 -10 -9 --------- Run | Yrd Mat Min Exi Min Distress Signals 2 | . 2 . . . Communications Jammed . | . . . . . Distress Signals . | . . . . . Times Spotted 14 | . 7 . . 7 Peak Tracking Total 7 | . 7 . . 4 Tactical Retreats 2 | . . . . 2 ECM-based Alert Blocks 2 | . . . . 2 Traps | -11 -10 -10 -10 -9 ------- Run | Yrd Mat Min Exi Min Traps Triggered . | . . . . . Indirectly . | . . . . . Trap Hack Attempts . | . . . . . Triggered . | . . . . . Disarmed . | . . . . . Reprogrammed . | . . . . . Reused . | . . . . . Traps Extracted . | . . . . . Installed . | . . . . . Triggered . | . . . . . Machines | -11 -10 -10 -10 -9 ---------- Run | Yrd Mat Min Exi Min Machines Disabled . | . . . . . Max in Single Turn . | . . . . . Machines Repaired . | . . . . . Machines Dismantled . | . . . . . Machines Sabotaged . | . . . . . Overloaded Fab Kills . | . . . . . Hacking | -11 -10 -10 -10 -9 --------- Run | Yrd Mat Min Exi Min Machines Accessed 5 | . 1 . 4 . Terminals 1 | . 1 . . . Fabricators . | . . . . . Repair Stations . | . . . . . Recycling Units . | . . . . . Scanalyzers . | . . . . . Garrison Access . | . . . . . Total Hacks 51 | . 2 . 49 . Successful 50 | . 1 . 49 . Failed 1 | . 1 . . . Catastrophic . | . . . . . Database Lockouts . | . . . . . Manual 2 | . . . 2 . Terminals 2 | . 2 . . . Fabricators . | . . . . . Repair Stations . | . . . . . Recycling Units . | . . . . . Scanalyzers . | . . . . . Garrison Access . | . . . . . Terminal Hacks 50 | . 1 . 49 . Record 49 | . . . 49 . Locate Traps 1 | . 1 . . . Fabricator Hacks . | . . . . . Repair Station Hacks . | . . . . . Recycling Unit Hacks . | . . . . . Scanalyzer . | . . . . . Garrison Access Hacks . | . . . . . Unauthorized Hacks . | . . . . . Terminals . | . . . . . Fabricators . | . . . . . Repair Stations . | . . . . . Recycling Units . | . . . . . Scanalyzers . | . . . . . Garrison Access . | . . . . . Data Cores Recovered . | . . . . . Used . | . . . . . Hacking Detections . | . . . . . Full Trace Events . | . . . . . Feedback Events . | . . . . . Feedback Blocked . | . . . . . Robot Schematics Acquired . | . . . . . Robots Built . | . . . . . Authchips . | . . . . . Time . | . . . . . Total Robot Build Rating . | . . . . . Part Schematics Acquired . | . . . . . Parts Built . | . . . . . Authchips . | . . . . . Time . | . . . . . Total Part Build Rating . | . . . . . Part Studies Acquired . | . . . . . Parts Repaired . | . . . . . Time . | . . . . . Parts Recycled . | . . . . . Recycled Matter . | . . . . . Retrieved Matter . | . . . . . Retrieved Components . | . . . . . Parts Scanalyzed . | . . . . . Part Schematics Acquired . | . . . . . Parts Damaged . | . . . . . Bothacking | -11 -10 -10 -10 -9 ------------ Run | Yrd Mat Min Exi Min Used RIF Installer . | . . . . . Robots Hacked . | . . . . . Non-combat . | . . . . . Combat . | . . . . . Robot Hacks Applied . | . . . . . Relay Couplers Released . | . . . . . Fabnet Peak Effective % . | . . . . . Robots Rewired . | . . . . . Allies Hacked . | . . . . . Hacks Repelled . | . . . . . Allies | -11 -10 -10 -10 -9 -------- Run | Yrd Mat Min Exi Min Total Allies . | . . . . . Largest Group . | . . . . . Highest-Rated Group . | . . . . . Highest-Rated Ally . | . . . . . Total Orders . | . . . . . Ally Attacks . | . . . . . Total Damage . | . . . . . Kills . | . . . . . Allies Corrupted . | . . . . . Allies Melted . | . . . . . Intel | -11 -10 -10 -10 -9 ------- Run | Yrd Mat Min Exi Min Active Infowar (turns) 2104 | 20 157 28 1607 292 Terrain 133 | 20 113 . . . ECM 1971 | . 44 28 1607 292 Robot Analysis Total . | . . . . . Derelict Logs Recovered . | . . . . . Drone Launches . | . . . . . Drone Recoveries . | . . . . . Exploration | -11 -10 -10 -10 -9 ------------- Run | Yrd Mat Min Exi Min Turns Passed 2221 | 121 157 28 1607 308 Spaces Moved 958 | 66 101 20 668 103 Core 8 | 8 . . . . Treads . | . . . . . Legs 950 | 58 101 20 668 103 Wheels . | . . . . . Hover . | . . . . . Flight . | . . . . . Fastest Speed 50 | 50 120 120 120 260 Average Speed 218 | 111 120 120 239 265 Slowest Speed 400 | 120 120 120 260 400 Overloaded Moves . | . . . . . Propulsion Burnouts . | . . . . . Robots Hopped . | . . . . . Potential Cave-ins . | . . . . . Cave-ins Triggered . | . . . . . Exploration Rate (%) 31 | 4 25 6 92 30 Regions Visited 4 Branch Regions 3 Pre-discovered Areas 1 | . . . 1 . Known Exits Taken . | . . . . . Unknown Exits Taken 4 | 1 1 1 1 . Scrap Searched 1 | . . . . 1 Spaces Dug . | . . . . . Terrain Destroyed . | . . . . . Melee . | . . . . . Projectile . | . . . . . AOE . | . . . . . Terrain Rammed . | . . . . . Walls Destroyed . | . . . . . Machines Disabled . | . . . . . Actions | -11 -10 -10 -10 -9 --------- Run | Yrd Mat Min Exi Min Total 1044 | 99 122 24 680 119 Wait 15 | . 11 4 . . Move 954 | 65 100 19 667 103 Hop . | . . . . . Pick Up 24 | 14 2 . 7 1 Fast Attach . | . . . . . Attach 9 | 7 . . . 2 Detach . | . . . . . Swap 2 | . 1 . 1 . Drop 5 | 1 . . 4 . Fire 33 | 12 8 . . 13 Melee . | . . . . . Ram . | . . . . . Kick 1 | . . 1 . . Crush . | . . . . . Escape Stasis . | . . . . . Rewire 1 | . . . 1 . Trap . | . . . . . Miscellaneous . | . . . . . Route ------- -11/Scrapyard -10/Materials -10/Mines -10/Exiles (discovered 2 exits: [*Min x2]) -9/Mines History --------- Turn | Location | Event 5 | -11/Scrapyard | Discovered new exit (range 15) 122 | -11/Scrapyard | Entered Materials 240 | -10/Materials | Met 8R-AWN 260 | -10/Materials | Discovered new exit (range 15) 279 | -10/Materials | Entered Mines 281 | -10/Mines | Followed 8R-AWN into the Mines 293 | -10/Mines | Met a Derelict bent on vengeance 303 | -10/Mines | Discovered new exit (range 5) 307 | -10/Mines | Entered Exiles 313 | -10/Exiles | Build established: Mutant 330 | -10/Exiles | Discovered new exit (range 15) 351 | -10/Exiles | Welcomed by 8R-AWN 377 | -10/Exiles | Met EX-HEX 508 | -10/Exiles | Met EX-DEC 620 | -10/Exiles | Learned location of Zion (-6) 786 | -10/Exiles | Discovered new exit (range 14) 978 | -10/Exiles | Met EX-BIN 1411 | -10/Exiles | Visited The Gauntlet 1914 | -10/Exiles | Entered Mines 2197 | -9/Mines | Core integrity fell below 50% 2211 | -9/Mines | Core integrity fell below 20% 2214 | -9/Mines | Received a Rocket Launcher from a helpful Derelict 2219 | -9/Mines | Assembled infested the area 2222 | -9/Mines | Destroyed by G-34 Mercenary with Small Laser Last Messages --------------- 02199_ Lgt. Ion Engine destroyed. 02203_ Acquired 10 matter. 02206_ ECM Suite destroyed. 02208_ A derelict emerges from the shadows. 02209_ JX-71D(g): "Some of my friends down here think you need a mining laser when you travel the depths." 02209_ S-10 Pest destroyed. 02210_ JX-71D(g): "They are crazy." 02211_ JX-71D(g): "Everyone knows a good old rocket launcher goes a long way." 02212_ JX-71D(g): "Need to get rid of a swarm? Done. Need a big hole in the wall? Done." 02213_ JX-71D(g): "Need a small hole in the wall? Leave that to the mining laser wimps, I say!" 02214_ JX-71D(g): "Would you like a rocket launcher? I know I would if I were you, so I'm going to lend you mine." 02214_ JX-71D(g) slips back into the shadows. 02217_ Acquired Rocket Launcher. 02219_ ALERT: Infestation in the mines, dispatching Demolisher response squad. Map ----- +----------------------------------------------------+ | ?????????????????????????????????????????????????? | | ?????????????????????????????????????????????????? | | ?????????????????????????????????????????????????? | | ?????????????????????????????????????????????????? | | ?????????????????????????????????????????????????? | | ?????????????????????????????????????????????????? | | ?????????????????????????????????????????????????? | | ?????????????????????????????????????????????????? | | ?????????????????????????????????????????????????? | | ?????????????????????????????????????????????????? | | ?????????????????????????????????????????????????? | | ?????????????????????????????????????????????????? | | ????????????????? ???????????????????????????????? | | ????????????????? ???????????????????????????????? | | ????????#???????# ???????????????????????????????? | | ???????? ##????# ???????????????????????????????? | | ???????? ##??? ???????????????????????????????? | | ???????? #??? ???????????????????????????????? | | ???????? #??? ???????????????????????????????? | | ???????# ???? ???????????????????????????????? | | ???????# #???? ????????####???????????????????? | | ??????## #???? ??????## ###?????????????????? | | ????### ##???# #?????## #### ###??????????? | | ???## ##### #????## rg ???????????? | | ???# #????#% [ k #????????????????? | | ??## #?# ######*l@ =%= #?????????????????? | | ?## #??# % %=[ =% #####?????????????????? | | ?# #???# ####### ##?????????????????????? | | ## ##??# %#?????####??????????????????????? | | ##?# %##??????????????????????????????? | | #?# ##?????????????????????????????? | | ##### ### #?????????????????????????????? | | #???## ### ##???????#????????????????????? | | #????##### ## ##??## ##???????????????????? | | #????????# ## #???????????????????? | | #????????# #???????????????????? | | #????????###### #???????????????????? | | #?????????????## """ #???????????????????? | | ##????????????## """ ##???????????????????? | | #????????????# """ ##????????????????????? | | #????????????# ##?????????????????????? | | #????????????# ##??????????????????????? | | #????????????# ##???????????????????????? | | #????????????## ## #????????????????????????? | | #?????????????####?# #????????????????????????? | | ##??????????????????? #???????????????????????? | | ??????????????????????# #???????????????????????? | | ??????????????????????? #???????????????????????? | | ???????????????????????? #???????????????????????? | | ?????????????????????????#???????????????????????? | +----------------------------------------------------+ Best States ------------- Heat Dissipation 25 Energy Generation 10 Energy Capacity 125 Matter Stores 300 Matter Capacity 300 Sight Range 16 Terrain Scan Range 16 Terrain Scan Density 10 ECM Strength 1 Resistance: KI 20 Resistance: TH 20 Resistance: EX 20 Resistance: EM 20 Resistance: I 20 Resistance: S 20 Resistance: P 20 Evasion (%) 55 Offensive Hacking 10 Item Schematics ----------------- None Robot Schematics ------------------ None Fabricated ------------ Nothing Repaired ---------- Nothing Studied --------- None Alien Tech Used ----------------- None Achievements -------------- Follow The Leader Challenges ------------ None Game ------ Seed HeavyScrapoidShredder Manual? 0 Play Time 00:15:37 Cumulative 27.3 hours Start 2025.11.23 @ 22:58:46 End 2025.11.23 @ 23:14:17 Sessions 1 Manual Loads 0 Difficulty Adventurer Special Mode None Game No. 55 Rogue 19 Adventurer 36 Explorer 0 Win Type - Total 0 Types 0/0/0/0/0/0/0/0/0/0 Lore% 9 Gallery% 24 Achievement% 13 Wizard Run 0 Options --------- Layout 0 ASCII 0 Keyboard 0 Movement Mouse Keybinds 0 Fullscreen 1 Font 18/SmallcapsGlow Map View 76x50 Zoom Use 0% Tactical HUD 1 Map Filters NONE Filters NONE Steam 1 RUN: 2611ef69-9b37-41bb-b3cf-8c54d41bbd9c